bitfinex-derivatives/quotes_SOLF0:USTF0_20251221
["timestamp","ask_amount","ask_price","bid_price","bid_amount"]
[1766335857343,12.3086,125.42,125.38,0.00164441]
[1766335857536,5.13,125.41,125.38,0.00164441]
[1766335858444,5.18,125.41,125.38,0.00164441]
[1766335861344,5.18,125.41,125.33,7.1833]
[1766335861546,5.13,125.4,125.34,47.12]
[1766335862540,0.05164441,125.38,125.36,0.05834673]
[1766335864141,5.18164441,125.38,125.36,0.05834673]
[1766335864446,5.18164441,125.38,125.34,47.12]
[1766335865350,5.18164441,125.38,125.35,0.05342562]
[1766335868060,14.63564564,125.42,125.35,0.05342562]
[1766335868256,12.9988,125.42,125.35,0.05342562]
[1766335868450,5.82,125.41,125.35,0.05342562]
[1766335869159,0.00398725,125.39,125.35,0.05342562]
[1766335869362,7.1774,125.44,125.35,0.05342562]
[1766335869663,7.1774,125.44,125.34,47.12]
[1766335870252,7.1774,125.44,125.38,0.05299534]
[1766335871160,1.71116719,125.43,125.38,0.05299534]
[1766335871363,5.82,125.42,125.38,0.05299534]
[1766335871560,5.82,125.4,125.38,0.00299534]
[1766335872658,5.87435948,125.4,125.38,0.00299534]
[1766335873863,5.87435948,125.4,125.34,47.12]
[1766335874164,5.87435948,125.4,125.32,7.1837]
[1766335874351,5.82,125.4,125.33,47.12]
[1766335874962,0.05146661,125.38,125.35,0.05624889]
[1766335885067,5.90074089,125.38,125.35,0.05624889]
[1766335886071,4.089e-05,125.39,125.35,0.05624889]
[1766335886272,7.64115767,125.41,125.35,0.05624889]
[1766335886568,5.93,125.4,125.35,0.05624889]
[1766335898774,5.93,125.4,125.35,47.17624889]
[1766335899079,5.93,125.4,125.35,54.35844889]
[1766335908382,6.29,125.42,125.35,54.35844889]
[1766335921099,6.29,125.42,125.35,7.23844889]
[1766335921297,6.29,125.42,125.36,47.12]
[1766335921487,6.29,125.42,125.38,0.05612069]
[1766335921887,7.1779,125.43,125.38,0.05612069]
[1766335921888,6.29,125.44,125.38,0.05612069]
[1766335923311,12.10186226,125.45,125.38,0.05612069]
[1766335923504,6.29,125.45,125.38,0.05612069]
[1766335924398,6.29,125.45,125.39,7.1796]
[1766335924598,6.29,125.45,125.41,0.05198068]
[1766335924797,6.29,125.45,125.42,47.12]
[1766335927302,7.5,125.47,125.42,47.12]
[1766335927504,7.5,125.47,125.43,0.05201126]
[1766335935700,7.5,125.46,125.41,47.1]
[1766335935903,7.5,125.46,125.37,44.1808]
[1766335936105,7.5,125.46,125.38,47.1]
[1766335936706,7.55767343,125.43,125.41,0.05147113]
[1766335936908,7.55767343,125.43,125.41,0.00147113]
[1766335941498,7.5,125.42,125.35,7.182]
[1766335941796,7.5,125.4,125.33,47.1]
[1766335942818,2.67082582,125.41,125.35,0.05702242]
[1766335942819,7.56138482,125.38,125.35,0.05702242]
[1766335943710,7.56138482,125.38,125.31,47.1]
[1766335943910,7.5,125.38,125.31,47.1]
[1766335944616,0.05543462,125.36,125.33,0.05216355]
[1766335952817,7.84543462,125.36,125.33,0.05216355]
[1766335957514,2.6749134,125.4,125.33,0.05216355]
[1766335958419,0.05234371,125.38,125.33,0.05216355]
[1766335959320,7.97,125.37,125.33,0.05216355]
[1766335969839,0.05234371,125.38,125.33,0.05216355]
[1766335971439,8.02234371,125.38,125.33,0.05216355]
[1766335971638,8.02234371,125.38,125.33,7.23536355]
[1766335979051,8.02234371,125.38,125.34,11.28]
[1766335979446,8.02234371,125.38,125.33,0.05216355]
[1766335980046,8.02234371,125.38,125.33,0.00216355]
[1766335985957,9.73444113,125.38,125.33,0.00216355]
[1766335986766,8.02234371,125.38,125.33,0.00216355]
[1766336004078,8.82,125.36,125.33,0.00216355]
[1766336015181,1.76398045,125.38,125.33,0.00216355]
[1766336015386,9.12398045,125.38,125.33,0.00216355]
[1766336017190,7.41234371,125.38,125.33,0.00216355]
[1766336042023,7.36,125.36,125.33,0.00216355]
[1766336042318,9.07157507,125.35,125.33,0.00216355]
[1766336042517,9.12226433,125.35,125.33,0.00216355]
[1766336046029,7.41068926,125.35,125.33,0.00216355]
[1766336051436,7.41068926,125.35,125.28,7.1862]
[1766336052336,7.41068926,125.35,125.3,0.05130222]
[1766336120901,9.12291413,125.35,125.3,0.00130222]
[1766336132414,7.41068926,125.35,125.3,0.00130222]
[1766336136922,4.98,125.33,125.3,0.00130222]
[1766336147934,5.03068926,125.35,125.3,0.00130222]
[1766336148231,5.03068926,125.35,125.31,7.1845]
[1766336149425,5.03068926,125.35,125.31,54.3245]
[1766336160337,5.03068926,125.35,125.31,47.14]
[1766336163644,0.05068926,125.35,125.31,47.14]
[1766336164743,4.98,125.37,125.31,56.03580191]
[1766336164944,4.98,125.39,125.31,48.85140191]
[1766336165143,4.98,125.39,125.31,85.85140191]
[1766336165739,0.06109183,125.36,125.34,0.05664517]
[1766336165940,0.06109183,125.36,125.35,47.12]
[1766336168647,0.06109183,125.36,125.34,0.05664517]
[1766336168848,0.06109183,125.36,125.34,47.17664517]
[1766336176064,0.00109183,125.36,125.34,54.35944517]
[1766336182766,0.00109183,125.36,125.35,47.12]
[1766336191270,4.71,125.4,125.35,47.12]
[1766336192174,0.05837871,125.39,125.35,47.12]
[1766336195378,0.05837871,125.39,125.34,44.23944517]
[1766336195579,0.05837871,125.39,125.35,47.12]
[1766336198276,0.05837871,125.39,125.35,54.3021]
[1766336202282,0.05837871,125.39,125.36,7.1815]
[1766336205781,0.05837871,125.39,125.37,7.1811]
[1766336205982,0.05837871,125.39,125.37,7.23388144]
[1766336207487,7.871e-05,125.41,125.38,7.1805]
[1766336208191,7.871e-05,125.41,125.38,54.3005]
[1766336208584,0.04304086,125.41,125.38,54.3005]
[1766336223198,0.04296215,125.41,125.38,54.3005]
[1766336236115,0.04296215,125.41,125.38,54.2805]
[1766336237618,0.04296215,125.41,125.38,7.1805]
[1766336237823,0.04296215,125.41,125.38,54.2805]
[1766336238119,0.04296215,125.41,125.38,7.1805]
[1766336238321,0.04296215,125.41,125.38,54.2805]
[1766336239322,0.04296215,125.41,125.38,7.1805]
[1766336239621,0.04296215,125.41,125.38,54.2805]
[1766336241222,0.04296215,125.41,125.38,7.1805]
[1766336241430,0.04296215,125.41,125.38,54.2805]
[1766336248622,0.00296215,125.41,125.38,54.2805]
[1766336254028,0.00296215,125.41,125.39,7.1799]
[1766336266746,0.00296215,125.41,125.4,47.1]
[1766336267138,5.02,125.48,125.4,160.48930316]
[1766336267836,1.71020316,125.51,125.43,3.76]
[1766336268038,1.65497297,125.52,125.45,3.76]
[1766336268237,1.65497297,125.52,125.46,47.15745164]
[1766336270051,5.02,125.51,125.46,47.15745164]
[1766336270445,5.02,125.49,125.4,3.86]
[1766336270748,5.02,125.47,125.41,47.1]
[1766336271436,0.05610828,125.45,125.43,0.05416396]
[1766336283053,5.02,125.47,125.43,5.06416396]
[1766336284351,5.02,125.49,125.43,5.06416396]
[1766336284650,5.02,125.49,125.45,0.05408022]
[1766336290259,5.02,125.49,125.45,0.00408022]
[1766336291056,5.9,125.47,125.45,0.00408022]
[1766336298357,0.05134336,125.48,125.45,0.00408022]
[1766336300359,5.95134336,125.48,125.45,0.00408022]
[1766336318964,5.95134336,125.48,125.41,7.1787]
[1766336319163,5.95134336,125.48,125.41,13.6987]
[1766336320062,5.95134336,125.48,125.43,0.05195085]
[1766336329274,5.95134336,125.48,125.43,6.57195085]
[1766336364108,5.95134336,125.48,125.43,0.05195085]
[1766336374722,5.95134336,125.48,125.43,6.97195085]
[1766336374917,0.05134336,125.48,125.43,6.97195085]
[1766336376818,0.05134336,125.48,125.43,14.14955085]
[1766336377210,0.05134336,125.48,125.44,7.35]
[1766336387222,0.00134336,125.48,125.44,7.35]
[1766336388831,0.00134336,125.48,125.45,7.35]
[1766336389831,0.00134336,125.48,125.46,7.35]
[1766336390032,0.00134336,125.48,125.46,7.40885493]
[1766336390628,0.00134336,125.48,125.46,54.48885493]
[1766336392625,0.00134336,125.48,125.46,7.40885493]
[1766336396343,0.00134336,125.48,125.46,0.05885493]
[1766336400641,0.00134336,125.48,125.46,7.40885493]
[1766336401844,7.44,125.56,125.48,7.35]
[1766336402045,9.14816543,125.58,125.5,7.35]
[1766336402342,7.44,125.6,125.52,1.70816543]
[1766336402548,9.14816543,125.57,125.51,7.35]
[1766336402748,7.44,125.57,125.49,14.5241]
[1766336402946,9.14816543,125.55,125.52,0.05415301]
[1766336403145,7.44,125.53,125.47,7.35]
[1766336403349,7.44,125.57,125.5,7.35]
[1766336404139,7.49609147,125.55,125.52,0.05036957]
[1766336404443,7.44,125.53,125.46,7.35]
[1766336404645,7.44,125.51,125.44,7.35]
[1766336404851,7.44,125.51,125.45,7.35]
[1766336405548,0.05761105,125.49,125.47,0.05308071]
[1766336406350,7.49,125.53,125.47,0.05308071]
[1766336406745,9.19816543,125.53,125.47,0.05308071]
[1766336407349,0.05335882,125.51,125.47,0.05308071]
[1766336412255,9.25152425,125.51,125.47,0.05308071]
[1766336412760,7.54335882,125.51,125.47,0.05308071]
[1766336416557,7.54335882,125.51,125.47,0.00308071]
[1766336417152,0.05335882,125.51,125.47,0.00308071]
[1766336417458,0.05335882,125.51,125.47,7.50308071]
[1766336424768,7.54335882,125.51,125.47,0.00308071]
[1766336426064,0.05335882,125.51,125.47,0.00308071]
[1766336427963,7.98335882,125.51,125.47,0.00308071]
[1766336429274,7.98335882,125.51,125.45,7.5]
[1766336429473,7.93,125.5,125.43,7.69]
[1766336430276,0.05456314,125.48,125.45,0.05262353]
[1766336435370,7.64456314,125.48,125.45,0.05262353]
[1766336436472,0.05456314,125.48,125.45,0.05262353]
[1766336454887,7.64456314,125.48,125.45,0.05262353]
[1766336456387,7.64456314,125.48,125.45,0.00262353]
[1766336457289,7.64456314,125.48,125.42,14.668]
[1766336458181,0.05456314,125.48,125.44,7.54261837]
[1766336465202,0.00456314,125.48,125.44,7.54261837]
[1766336467106,8.28,125.56,125.46,7.61]
[1766336467600,8.28,125.56,125.48,7.61]
[1766336468004,0.05385862,125.53,125.51,0.05134555]
[1766336476601,8.33385862,125.53,125.47,7.61]
[1766336476906,9.9868541,125.52,125.45,7.61]
[1766336477697,0.05939004,125.5,125.47,0.05413451]
[1766336479105,8.33939004,125.5,125.47,0.00413451]
[1766336479305,8.33939004,125.5,125.44,7.61]
[1766336480409,8.33939004,125.5,125.46,0.05114387]
[1766336487303,9.53804107,125.49,125.46,0.00114387]
[1766336487909,9.53804107,125.49,125.41,14.8388]
[1766336487910,1.70804107,125.47,125.41,14.8388]
[1766336488215,9.53804107,125.47,125.41,14.8388]
[1766336488416,7.83,125.47,125.41,14.8388]
[1766336488920,0.05868917,125.45,125.43,0.05276575]
[1766336494629,7.83,125.5,125.43,7.71276575]
[1766336494832,7.83,125.5,125.43,7.66]
[1766336495131,7.83,125.5,125.44,7.83]
[1766336495632,0.05160306,125.48,125.46,0.05301257]
[1766336503237,0.00160306,125.48,125.46,7.88301257]
[1766336507960,0.00160306,125.48,125.46,0.05301257]
[1766336509961,7.99,125.52,125.46,7.88301257]
[1766336510855,0.0545267,125.5,125.46,7.88301257]
[1766336522466,8.0445267,125.5,125.46,7.88301257]
[1766336523667,0.0545267,125.5,125.46,7.88301257]
[1766336532267,0.0045267,125.5,125.46,15.05891257]
[1766336532464,0.0045267,125.5,125.47,8.29]
[1766336537972,7.75,125.55,125.47,8.29]
[1766336538275,10.41819546,125.55,125.47,8.29]
[1766336538681,7.75,125.55,125.49,8.29]
[1766336538977,0.05828443,125.53,125.51,0.05556655]
[1766336552684,0.05828443,125.53,125.47,8.18]
[1766336552685,7.80828443,125.53,125.47,8.18]
[1766336553483,7.80828443,125.53,125.49,0.05614806]
[1766336554192,7.80828443,125.53,125.49,8.23614806]
[1766336560098,7.80828443,125.53,125.49,0.05614806]
[1766336560398,7.80828443,125.53,125.45,37.0]
[1766336560399,8.02,125.51,125.45,7.8]
[1766336561400,0.05998991,125.49,125.47,0.06037629]
[1766336562900,8.02,125.53,125.47,7.86037629]
[1766336563789,0.05539502,125.51,125.47,7.86037629]
[1766336564003,8.02,125.53,125.47,7.86037629]
[1766336565107,0.05450898,125.51,125.47,7.86037629]
[1766336568502,0.00450898,125.51,125.47,7.86037629]
[1766336568700,0.00450898,125.51,125.48,7.8]
[1766336570702,111.5393,125.57,125.45,7.8]
[1766336570909,2.66922642,125.54,125.45,7.8]
[1766336571108,2.66922642,125.56,125.46,7.8]
[1766336571806,0.05971741,125.52,125.5,0.06127188]
[1766336581826,8.07971741,125.52,125.45,14.9763]
[1766336582016,8.07971741,125.52,125.46,7.8]
[1766336582719,8.07971741,125.52,125.48,0.05263462]
[1766336596042,0.05971741,125.52,125.48,8.13263462]
[1766336603943,1.70759689,125.54,125.48,8.13263462]
[1766336604842,0.05934072,125.52,125.48,8.13263462]
[1766336611749,8.07,125.55,125.49,8.22]
[1766336612747,0.04071566,125.53,125.51,0.05097352]
[1766336618944,7.88071566,125.53,125.48,8.27]
[1766336620054,7.88071566,125.53,125.49,0.05520827]
[1766336621453,9.54759689,125.52,125.49,0.05520827]
[1766336636478,9.54759689,125.52,125.45,8.27]
[1766336636685,9.54759689,125.52,125.43,7.1774]
[1766336636686,7.84,125.47,125.41,8.27]
[1766336637481,0.0531598,125.45,125.43,0.05206164]
[1766336641883,7.84,125.47,125.43,8.32206164]
[1766336643080,0.05559016,125.46,125.43,8.32206164]
[1766336644685,7.84,125.49,125.43,8.32206164]
[1766336644987,7.84,125.49,125.43,8.27]
[1766336645582,0.03814749,125.47,125.45,0.05648957]
[1766336646581,48.76900619,125.51,125.45,8.19648957]
[1766336646582,7.72,125.51,125.45,8.19648957]
[1766336646983,54.2513,125.55,125.45,8.19648957]
[1766336646984,7.72,125.54,125.45,8.19648957]
[1766336647181,7.72,125.54,125.45,8.14]
[1766336647589,7.72,125.54,125.48,0.05416555]
[1766336663698,7.72,125.54,125.48,8.19416555]
[1766336666305,7.91,125.53,125.48,8.19416555]
[1766336666494,7.91,125.53,125.48,0.05416555]
[1766336681317,7.91,125.53,125.48,7.22886555]
[1766336684018,7.91,125.53,125.49,7.1742]
[1766336685320,2.66825482,125.54,125.49,7.1742]
[1766336687319,8.44,125.53,125.49,7.1742]
[1766336690423,8.44,125.53,125.48,0.05416555]
[1766336703739,8.44,125.53,125.48,8.48416555]
[1766336716360,8.55,125.52,125.45,37.0]
[1766336716647,8.55,125.5,125.44,8.11]
[1766336717051,8.55,125.52,125.45,8.11]
[1766336717453,0.05029991,125.5,125.47,0.05040742]
[1766336721353,8.60029991,125.5,125.47,0.05040742]
[1766336723945,9.991e-05,125.5,125.47,0.05040742]
[1766336725350,9.991e-05,125.5,125.47,7.22580742]
[1766336726242,9.991e-05,125.5,125.47,0.05040742]
[1766336726446,0.05396555,125.5,125.44,8.06]
[1766336727656,0.05396555,125.5,125.46,0.05922814]
[1766336734159,1.7079902,125.49,125.46,0.05922814]
[1766336734346,0.05396555,125.5,125.46,0.05922814]
[1766336734552,1.7079902,125.49,125.46,0.05922814]
[1766336734760,0.05396555,125.5,125.46,0.05922814]
[1766336734956,0.05396555,125.5,125.46,8.11922814]
[1766336738568,0.05386564,125.5,125.46,8.11922814]
[1766336752576,0.00386564,125.5,125.46,8.11922814]
[1766336758591,1.7079902,125.49,125.46,0.05922814]
[1766336759787,2.3679902,125.49,125.46,0.05922814]
[1766336761384,1.70882803,125.48,125.46,0.05922814]
[1766336762275,7.5476885,125.48,125.46,0.05922814]
[1766336762483,5.83886047,125.47,125.42,8.54]
[1766336762673,5.83886047,125.46,125.42,8.54]
[1766336762870,5.83886047,125.47,125.42,8.54]
[1766336763486,0.05378576,125.46,125.43,0.05724546]
[1766336764079,2.34882803,125.44,125.37,8.54]
[1766336764285,8.1876885,125.44,125.37,8.54]
[1766336764585,2.34882803,125.44,125.37,8.54]
[1766336764977,8.1876885,125.44,125.39,0.05374909]
[1766336765179,2.42469496,125.42,125.35,8.45]
[1766336766291,2.42469496,125.42,125.37,0.05929166]
[1766336766586,0.05604552,125.41,125.37,0.05929166]
[1766336767378,0.05604552,125.41,125.37,8.50929166]
[1766336769377,0.05604552,125.41,125.37,15.69009166]
[1766336772189,4.552e-05,125.42,125.38,7.1804]
[1766336773192,0.05298796,125.41,125.38,7.1804]
[1766336773392,0.05298796,125.41,125.37,8.50929166]
[1766336778298,0.09,125.45,125.37,8.50929166]
[1766336778608,0.09,125.45,125.37,8.45]
[1766336779300,0.05907553,125.42,125.4,0.05266237]
[1766336780800,0.09,125.45,125.4,8.50266237]
[1766336781493,0.23,125.47,125.4,15.68196237]
[1766336781694,0.23,125.47,125.42,8.50638556]
[1766336791100,0.23,125.47,125.42,0.05638556]
[1766336796107,0.23,125.47,125.42,8.74638556]
[1766336797210,47.4,125.49,125.43,8.69]
[1766336797508,47.4,125.49,125.45,0.05499957]
[1766336799714,47.4,125.49,125.4,15.8694]
[1766336799715,0.34,125.47,125.4,15.8694]
[1766336800011,0.34,125.47,125.41,8.69]
[1766336800811,0.05574946,125.45,125.43,0.05594029]
[1766336801916,47.43,125.49,125.43,8.74594029]
[1766336803116,53.25788783,125.49,125.43,8.74594029]
[1766336805015,53.25788783,125.49,125.44,8.69]
[1766336805312,47.43,125.49,125.44,8.69]
[1766336806612,47.43,125.49,125.44,15.867]
[1766336816622,53.25788783,125.49,125.44,15.867]
[1766336818116,5.82788783,125.48,125.44,15.867]
[1766336822325,7.91105638,125.51,125.46,8.69]
[1766336822520,2.67104998,125.52,125.47,8.75032939]
[1766336822721,47.57,125.53,125.47,8.75032939]
[1766336823024,0.5,125.52,125.47,8.75032939]
[1766336823634,47.08,125.53,125.48,8.69]
[1766336823921,47.58,125.53,125.48,8.69]
[1766336827525,0.49,125.49,125.42,8.88]
[1766336827724,2.67104998,125.48,125.42,8.88]
[1766336828631,0.05630167,125.46,125.44,0.05926506]
[1766336838537,6.31126281,125.49,125.44,8.93926506]
[1766336838739,0.49,125.49,125.44,8.93926506]
[1766336839038,6.31126281,125.49,125.44,8.93926506]
[1766336842434,5.82126281,125.48,125.44,8.93926506]
[1766336842931,6.31126281,125.49,125.44,8.93926506]
[1766336843139,5.82126281,125.48,125.44,8.93926506]
[1766336854739,5.82126281,125.49,125.44,8.93926506]
[1766336854941,5.82126281,125.48,125.44,8.93926506]
[1766336855140,5.82126281,125.49,125.44,8.93926506]
[1766336855337,7.53002789,125.48,125.44,8.93926506]
[1766336855538,7.53002789,125.48,125.38,113.40126508]
[1766336855539,1.70876508,125.46,125.37,8.88]
[1766336855741,7.53002789,125.46,125.37,8.88]
[1766336855940,1.70876508,125.46,125.37,8.88]
[1766336856335,7.53002789,125.46,125.37,8.88]
[1766336856536,0.05124821,125.43,125.4,8.93867566]
[1766336868848,0.05124821,125.43,125.38,8.88]
[1766336868849,1.70876508,125.42,125.38,8.88]
[1766336869953,1.70876508,125.42,125.39,0.05493365]
[1766336869954,0.05027744,125.41,125.39,0.05493365]
[1766336881657,0.05027744,125.41,125.39,0.00493365]
[1766336886570,0.00027744,125.41,125.39,8.11493365]
[1766336898690,0.00389171,125.44,125.4,8.11]
[1766336898878,1.71053859,125.46,125.4,8.11]
[1766336899580,10.44053859,125.46,125.4,8.11]
[1766336899973,0.06056535,125.44,125.42,0.05110407]
[1766336907285,0.00056535,125.44,125.42,8.16110407]
[1766336909788,0.00056535,125.44,125.43,8.11]
[1766336912592,19.05,125.52,125.45,8.11]
[1766336913585,0.05369917,125.5,125.47,0.0606853]
[1766336921601,8.28369917,125.5,125.47,0.0606853]
[1766336922311,10.32,125.52,125.47,8.5006853]
[1766336922608,8.23,125.55,125.49,8.44]
[1766336922796,8.23,125.55,125.49,120.0394]
[1766336923002,8.23,125.55,125.5,7.1735]
[1766336923710,111.3874,125.74,125.63,8.44]
[1766336923889,111.3874,125.74,125.67,0.05640338]
[1766336923890,8.23,125.72,125.67,0.05640338]
[1766336924091,2.66848829,125.76,125.68,119.8716]
[1766336924304,2.66848829,125.74,125.65,8.44]
[1766336925093,2.66848829,125.74,125.65,127.0619]
[1766336925292,0.05152691,125.71,125.68,0.05239606]
[1766336925493,2.66848829,125.75,125.67,119.8783]
[1766336925701,0.00034612,125.7,125.68,0.06063507]
[1766336925893,2.66848829,125.75,125.68,0.06063507]
[1766336926203,8.23,125.75,125.68,127.09393507]
[1766336926703,8.23,125.75,125.68,8.50063507]
[1766336927107,8.23,125.73,125.68,0.06063507]
[1766336927300,8.23,125.73,125.66,15.6046]
[1766336927500,8.23,125.73,125.68,0.05329435]
[1766336931905,2.66848829,125.76,125.68,8.49329435]
[1766336932212,8.23,125.75,125.71,0.05152179]
[1766336934415,47.08,125.77,125.66,8.44]
[1766336934416,8.28913047,125.74,125.66,8.44]
[1766336934611,8.23,125.74,125.66,8.44]
[1766336935410,0.0564404,125.71,125.69,0.05182153]
[1766336936504,0.0564404,125.71,125.69,0.00182153]
[1766336938712,8.23,125.76,125.69,0.00182153]
[1766336938912,8.23,125.76,125.68,8.44]
[1766336939813,0.05208176,125.73,125.71,0.05183399]
[1766336941813,8.28208176,125.73,125.71,0.00183399]
[1766336942117,8.28208176,125.73,125.66,8.44]
[1766336943022,8.28208176,125.73,125.68,0.05734544]
[1766336943710,0.05208176,125.73,125.68,8.49734544]
[1766336944111,6.12,125.79,125.68,8.49734544]
[1766336944312,7.981,125.89,125.66,111.4484]
[1766336944313,2.66848829,126.12,125.78,5.33697658]
[1766336944512,2.66848829,126.13,126.0,23.94]
[1766336944815,16.00009612,126.14,125.97,137.77878829]
[1766336945018,118.5203,126.15,126.0,111.1466]
[1766336945019,2.66848829,126.08,126.0,111.1466]
[1766336945222,0.05223925,126.07,126.04,0.05666676]
[1766336945417,2.72072754,126.07,126.05,7.45272866]
[1766336945624,2.72072754,126.07,126.03,0.05002366]
[1766336945625,4.09699612,126.06,126.03,0.05002366]
[1766336946017,0.05223925,126.06,126.03,0.05002366]
[1766336946216,8.6,126.13,126.03,0.05002366]
[1766336946519,8.6,126.13,126.01,111.1372]
[1766336946712,8.6,126.13,126.03,111.1222]
[1766336947312,8.6,126.13,126.03,111.1206]
[1766336947513,8.6,126.13,126.07,0.05928865]
[1766336947916,8.6,126.16,126.07,0.05928865]
[1766336948116,8.6,126.16,126.1,0.05261125]
[1766336949915,8.6,126.16,126.1,0.00261125]
[1766336950121,8.6,126.15,126.02,111.1271]
[1766336950432,8.6,126.14,126.02,111.1271]
[1766336950925,8.6,126.14,126.01,46.94]
[1766336951230,0.05261125,126.09,126.06,0.0543783]
[1766336951420,0.05261125,126.09,126.01,158.0786]
[1766336951618,8.6,126.14,126.04,0.0521748]
[1766336951814,8.6,126.14,126.02,111.1283]
[1766336952219,8.6,126.14,126.03,111.1205]
[1766336953026,8.6,126.14,126.07,0.05368195]
[1766336956324,119.6297,126.14,126.07,0.05368195]
[1766336956526,8.6,126.13,126.07,0.05368195]
[1766336957531,8.6,126.13,126.01,23.94]
[1766336957532,8.6,126.12,126.01,23.94]
[1766336958828,0.00172615,126.08,126.05,0.05991413]
[1766336963131,0.00172615,126.08,125.97,111.174]
[1766336963325,55.48,126.09,125.97,111.174]
[1766336963631,8.6,126.08,125.97,118.3209]
[1766336964427,0.05111404,126.04,126.01,0.05388389]
[1766336966731,8.91111404,126.04,125.95,118.3417]
[1766336966936,8.86,126.04,125.95,7.148]
[1766336967338,8.86,126.04,125.94,111.1947]
[1766336968036,0.05330364,126.0,125.98,0.05084012]
[1766336973130,0.05330364,126.0,125.92,118.3665]
[1766336973339,8.86,126.01,125.92,7.1496]
[1766336974337,0.05242891,125.98,125.95,0.05127958]
[1766336974845,0.05242891,125.98,125.91,111.2287]
[1766336975035,8.86,125.99,125.91,111.2287]
[1766336975634,8.86,125.99,125.91,118.3787]
[1766336975834,0.05660583,125.96,125.94,0.0597134]
[1766336977340,0.05660583,125.96,125.89,7.1515]
[1766336977643,0.05660583,125.96,125.9,7.16670476]
[1766336977942,9.67660583,125.96,125.91,7.16670476]
[1766336978238,9.67660583,125.96,125.89,7.1515]
[1766336978435,9.67660583,125.96,125.91,0.05108522]
[1766336980849,9.67660583,125.96,125.91,7.20098522]
[1766336981258,9.67660583,125.96,125.91,0.05108522]
[1766336990649,46.88,125.97,125.91,0.05108522]
[1766336990650,46.88,125.97,125.92,7.1493]
[1766336990853,46.88,125.97,125.91,119.99938522]
[1766336991552,46.88,125.97,125.93,7.149]
[1766336991753,0.05661508,125.96,125.94,0.05571658]
[1766336992254,6.37709463,125.97,125.92,111.2192]
[1766336992754,9.463e-05,125.97,125.92,111.2192]
[1766336993358,0.05792096,125.96,125.93,0.05941271]
[1766336993555,0.05792096,125.96,125.93,7.20851271]
[1766336995757,0.05792096,125.96,125.94,7.1485]
[1766336997964,9.62,125.99,125.94,7.1485]
[1766336999057,0.05918663,125.98,125.94,7.1485]
[1766337002753,46.9,126.02,125.95,9.03]
[1766337003661,48.59525225,126.02,125.96,7.1474]
[1766337003866,0.0533098,126.0,125.97,0.05553485]
[1766337007277,10.4533098,126.0,125.97,0.05553485]
[1766337007478,12.14856205,126.0,125.97,0.05553485]
[1766337009868,10.4533098,126.0,125.97,0.05553485]
[1766337010180,12.14856205,126.0,125.94,7.1484]
[1766337010977,12.14856205,126.0,125.96,0.05684937]
[1766337012981,12.14856205,126.0,125.93,9.97]
[1766337013179,12.09525225,125.98,125.92,7.1495]
[1766337014280,0.05072846,125.96,125.94,0.05017576]
[1766337030490,46.9,126.02,125.94,17.62877576]
[1766337030692,46.9,126.02,125.94,17.5786]
[1766337031498,0.06019428,125.99,125.97,0.00051519]
[1766337032493,10.21019428,125.99,125.97,0.00051519]
[1766337034809,10.21019428,125.99,125.94,7.1486]
[1766337035809,10.21019428,125.99,125.95,0.05143044]
[1766337044617,9.4774,126.02,125.95,10.57143044]
[1766337044812,9.38878526,126.08,125.95,10.57143044]
[1766337044813,111.0498,126.12,126.02,4.68]
[1766337045216,2.64871473,126.11,126.02,4.68]
[1766337045618,0.05987697,126.08,126.05,0.05302547]
[1766337045814,0.05987697,126.08,126.05,0.00302547]
[1766337046911,10.44,126.11,126.05,4.90302547]
[1766337047116,10.44,126.13,126.05,4.90302547]
[1766337047316,10.44,126.13,126.05,4.9]
[1766337047926,0.05705924,126.1,126.08,0.05592014]
[1766337054833,10.44,126.13,126.08,5.47592014]
[1766337055123,36.52,126.14,126.08,5.47592014]
[1766337055835,0.05901102,126.12,126.08,5.47592014]
[1766337056125,0.05901102,126.12,126.08,0.05592014]
[1766337056429,10.49901102,126.12,126.08,0.05592014]
[1766337082760,11.53,126.11,126.05,13.6521]